bitfinex-derivatives/quotes_BTCF0:USTF0_20250728
["timestamp","ask_amount","ask_price","bid_price","bid_amount"]
[1753687968969,1.97415105,118990.0,118970.0,0.007]
[1753687969170,2.07855402,118990.0,118970.0,0.007]
[1753687969673,1.97415105,118990.0,118970.0,0.007]
[1753687970367,0.05026985,118980.0,118970.0,0.007]
[1753687970672,0.06958465,118980.0,118970.0,0.007]
[1753687970972,0.15363238,118980.0,118970.0,0.007]
[1753687971359,0.02909,118960.0,118950.0,0.46933089]
[1753687971565,0.02909,118950.0,118940.0,0.65561089]
[1753687971769,0.02909,118950.0,118940.0,1.07583089]
[1753687971770,0.0484048,118950.0,118940.0,1.07583089]
[1753687973369,0.0484048,118950.0,118940.0,1.12575089]
[1753687973765,0.0382148,118950.0,118940.0,1.12975089]
[1753687973973,0.0494048,118950.0,118940.0,0.70953089]
[1753687974368,0.0495048,118950.0,118940.0,0.70953089]
[1753687974767,0.0495048,118950.0,118940.0,0.47843]
[1753687974968,0.0515048,118950.0,118940.0,0.71153089]
[1753687975471,0.0383148,118950.0,118940.0,0.70953089]
[1753687975672,0.0403148,118950.0,118940.0,0.71153089]
[1753687976577,0.0403148,118950.0,118940.0,0.47843]
[1753687976875,0.0403148,118950.0,118940.0,0.71153089]
[1753687977871,0.021,118950.0,118940.0,0.71153089]
[1753687978079,0.0403148,118950.0,118940.0,0.71153089]
[1753687979677,0.08074475,118950.0,118940.0,0.71153089]
[1753687979878,0.11124955,118950.0,118940.0,0.71153089]
[1753687980077,0.11124955,118950.0,118940.0,0.47843]
[1753687980282,0.11124955,118950.0,118940.0,0.45513166]
[1753687980283,0.0515048,118950.0,118940.0,0.45513166]
[1753687980477,0.0515048,118950.0,118940.0,0.68823255]
[1753687980682,0.09185657,118950.0,118940.0,0.68823255]
[1753687980886,0.09998137,118950.0,118940.0,0.68823255]
[1753687981076,0.09998137,118950.0,118940.0,0.45513166]
[1753687981471,0.11502137,118950.0,118940.0,0.4223564]
[1753687982280,0.34812226,118950.0,118940.0,0.05592]
[1753687982476,0.0932,118940.0,118930.0,0.65561089]
[1753687982679,0.81015142,118940.0,118930.0,0.65561089]
[1753687983779,0.81015142,118940.0,118930.0,0.63541247]
[1753687983985,0.08057142,118940.0,118930.0,0.63541247]
[1753687984180,0.08057142,118940.0,118930.0,0.6051153]
[1753687984387,0.08057142,118940.0,118930.0,0.6550353]
[1753687984980,0.12943142,118940.0,118930.0,0.6550353]
[1753687985182,0.13043142,118940.0,118930.0,0.6550353]
[1753687985687,0.13243142,118940.0,118930.0,0.6550353]
[1753687985884,0.19209799,118940.0,118930.0,0.6550353]
[1753687986387,0.13243142,118940.0,118930.0,0.6550353]
[1753687988389,0.08357142,118940.0,118930.0,0.6550353]
[1753687988785,0.13243142,118940.0,118930.0,0.6550353]
[1753687989691,0.19209799,118940.0,118930.0,0.42193441]
[1753687989890,0.42519888,118940.0,118930.0,0.42193441]
[1753687990079,0.42529888,118940.0,118930.0,0.39163594]
[1753687990487,0.42529888,118940.0,118930.0,0.32834054]
[1753687990685,0.19219799,118940.0,118930.0,0.32834054]
[1753687991287,0.19219799,118940.0,118930.0,0.56144143]
[1753687991887,0.87555799,118940.0,118930.0,0.30814171]
[1753687993087,0.87555799,118940.0,118930.0,0.5412426]
[1753687993789,0.09899799,118940.0,118930.0,1.1349526]
[1753687996197,0.09899799,118940.0,118930.0,1.10465563]
[1753687996990,0.25776799,118940.0,118930.0,1.10465563]
[1753687997289,0.33972142,118940.0,118930.0,1.10465563]
[1753687997804,0.33972142,118940.0,118930.0,0.33391417]
[1753687997805,0.69458051,118940.0,118930.0,0.33391417]
[1753687997983,0.69458051,118940.0,118930.0,0.47660417]
[1753687998389,0.78986051,118940.0,118910.0,0.23310089]
[1753687998585,1.09898,118930.0,118920.0,0.41138]
[1753687998795,1.1182948,118930.0,118920.0,0.41138]
[1753687998993,1.17802972,118930.0,118920.0,0.41138]
[1753687999395,1.23180362,118930.0,118920.0,0.64448089]
[1753687999693,1.23180362,118930.0,118920.0,0.41138]
[1753687999890,1.23380362,118930.0,118920.0,0.41238]
[1753688000291,1.23480362,118930.0,118920.0,0.41238]
[1753688000492,1.23480362,118930.0,118920.0,0.48705]
[1753688001094,1.23480362,118930.0,118920.0,0.05062]
[1753688001095,1.46790451,118930.0,118920.0,0.05062]
[1753688001299,1.46790451,118930.0,118910.0,0.40995423]
[1753688001300,0.47792662,118920.0,118910.0,0.40995423]
[1753688001491,0.73034231,118920.0,118910.0,0.40995423]
[1753688002000,0.81442891,118920.0,118910.0,0.40995423]
[1753688002193,0.87416383,118920.0,118910.0,0.40995423]
[1753688002496,0.87416383,118920.0,118910.0,0.37964895]
[1753688002697,0.87616383,118920.0,118910.0,0.38064895]
[1753688002886,0.81642891,118920.0,118910.0,0.38064895]
[1753688003296,0.87616383,118920.0,118910.0,0.45531895]
[1753688003897,1.56112383,118920.0,118910.0,0.45531895]
[1753688004197,0.55997634,118920.0,118910.0,0.37115283]
[1753688004492,1.24481634,118920.0,118910.0,0.37115283]
[1753688004792,0.91016142,118920.0,118910.0,0.60425372]
[1753688004997,0.91116142,118920.0,118910.0,0.60425372]
[1753688005400,1.18504142,118920.0,118910.0,0.60425372]
[1753688005698,1.18496142,118920.0,118910.0,0.60425372]
[1753688005896,1.18496142,118920.0,118910.0,0.37115283]
[1753688006102,1.18300142,118920.0,118910.0,0.37015283]
[1753688006306,1.18400142,118920.0,118910.0,0.37015283]
[1753688006992,1.24373634,118920.0,118910.0,0.37015283]
[1753688007597,1.56093091,118920.0,118910.0,0.29548283]
[1753688007804,1.28705091,118920.0,118900.0,0.15344]
[1753688007994,0.69392089,118910.0,118900.0,0.15344]
[1753688008199,0.46082,118890.0,118880.0,0.54310174]
[1753688008402,0.76788479,118890.0,118880.0,1.17568289]
[1753688008701,0.08324479,118890.0,118880.0,1.54578699]
[1753688008895,0.76804479,118890.0,118880.0,1.54578699]
[1753688009296,0.77028479,118890.0,118880.0,1.52558102]
[1753688009989,0.77028479,118890.0,118880.0,1.76882102]
[1753688010195,1.07262479,118890.0,118880.0,1.76882102]
[1753688010704,0.16083479,118890.0,118880.0,1.76882102]
[1753688010899,0.84583479,118890.0,118880.0,1.76882102]
[1753688011302,0.16083479,118890.0,118880.0,1.76882102]
[1753688011496,1.00460479,118890.0,118880.0,1.76882102]
[1753688011797,1.07358479,118890.0,118880.0,1.76882102]
[1753688012197,0.43003638,118890.0,118880.0,1.76882102]
[1753688012397,1.11491638,118890.0,118880.0,1.76882102]
[1753688012597,0.20328638,118890.0,118880.0,1.76882102]
[1753688013100,0.84288638,118890.0,118880.0,1.76882102]
[1753688013500,0.15796638,118890.0,118880.0,1.76882102]
[1753688013698,0.12769638,118890.0,118880.0,1.76882102]
[1753688014001,0.81269638,118890.0,118880.0,1.76882102]
[1753688014196,0.08056638,118890.0,118880.0,1.76882102]
[1753688014502,0.79181417,118910.0,118900.0,0.15762]
[1753688014702,0.89181417,118910.0,118900.0,1.03437263]
[1753688014894,0.89181417,118910.0,118900.0,1.78868463]
[1753688015094,0.89161417,118910.0,118900.0,1.78868463]
[1753688015497,0.93411825,118910.0,118900.0,1.78868463]
[1753688015705,0.25027825,118910.0,118900.0,1.78868463]
[1753688016396,0.25127825,118910.0,118900.0,1.78868463]
[1753688016703,0.44031825,118910.0,118900.0,1.78868463]
[1753688016903,0.55361825,118910.0,118900.0,1.78868463]
[1753688017501,0.66496825,118910.0,118900.0,1.78868463]
[1753688018893,0.66496825,118910.0,118900.0,1.55558374]
[1753688019100,0.66496825,118910.0,118900.0,1.76848133]
[1753688019303,0.66500825,118910.0,118900.0,1.76848133]
[1753688019697,0.19167408,118910.0,118900.0,1.76848133]
[1753688020200,0.04454408,118910.0,118900.0,1.76848133]
[1753688020404,0.07675079,118920.0,118910.0,0.34895]
[1753688020604,0.07675079,118920.0,118910.0,2.42141463]
[1753688020804,0.11929851,118920.0,118910.0,2.42141463]
[1753688021305,0.05965434,118920.0,118910.0,2.42141463]
[1753688021605,0.27504299,118930.0,118920.0,0.2893]
[1753688021906,0.27504299,118930.0,118920.0,1.17281263]
[1753688022203,0.06826882,118930.0,118920.0,1.67712463]
[1753688022396,0.12462079,118940.0,118920.0,1.67712463]
[1753688022397,0.1183562,118960.0,118940.0,0.34076757]
[1753688022597,0.23999367,118960.0,118950.0,1.01494846]
[1753688022804,0.23999367,118960.0,118950.0,0.90133977]
[1753688023005,0.23999367,118960.0,118950.0,1.40565177]
[1753688023605,0.44795263,118960.0,118950.0,1.40565177]
[1753688024600,0.49591263,118960.0,118950.0,1.40565177]
[1753688024908,0.39245623,118960.0,118950.0,1.17355088]
[1753688025102,0.39245623,118960.0,118950.0,1.47655433]
[1753688025699,0.39245623,118960.0,118950.0,1.17355088]
[1753688026100,0.44055623,118960.0,118950.0,0.66923888]
[1753688026307,0.45828617,118960.0,118950.0,0.66923888]
[1753688026605,0.34355617,118960.0,118950.0,0.67423888]
[1753688026806,0.34355617,118960.0,118950.0,1.17855088]
[1753688027008,0.41222617,118960.0,118950.0,1.17855088]
[1753688027903,0.08003997,118960.0,118950.0,1.48155433]
[1753688029303,0.12799997,118960.0,118950.0,1.48155433]
[1753688030005,0.08003997,118960.0,118950.0,1.48155433]
[1753688032707,0.12799997,118960.0,118950.0,1.48155433]
[1753688032906,0.55371997,118960.0,118950.0,1.17855088]
[1753688033210,0.55371997,118960.0,118950.0,1.86531088]
[1753688033805,0.55371997,118960.0,118950.0,1.17855088]
[1753688034012,0.55371997,118960.0,118950.0,1.86523088]
[1753688034209,0.55371997,118960.0,118950.0,2.16859433]
[1753688036608,0.08003997,118960.0,118950.0,2.16859433]
[1753688036812,0.08003997,118960.0,118950.0,2.18717045]
[1753688037510,0.08103997,118960.0,118950.0,0.30300345]
[1753688037810,0.43200342,118960.0,118930.0,0.68776]
[1753688038010,0.35096345,118950.0,118930.0,0.68776]
[1753688038211,0.36869339,118950.0,118930.0,0.68776]
[1753688039213,0.36969339,118950.0,118930.0,0.68876]
[1753688039414,0.37169339,118950.0,118930.0,0.68976]
[1753688039715,0.06868994,118950.0,118930.0,0.68976]
[1753688039915,0.68732,118940.0,118920.0,0.1681612]
[1753688040116,0.68732,118940.0,118910.0,0.61591278]
[1753688040314,0.70513018,118940.0,118910.0,0.57387408]
[1753688040514,0.75309018,118940.0,118910.0,0.32162108]
[1753688040715,0.30300345,118930.0,118910.0,0.01861763]
[1753688040917,1.03916345,118920.0,118910.0,0.01861763]
[1753688041415,1.20732675,118920.0,118910.0,0.01861763]
[1753688041611,1.45398527,118920.0,118910.0,0.01861763]
[1753688041817,0.2522951,118900.0,118860.0,0.2103073]
[1753688042015,0.2522951,118900.0,118860.0,0.55537275]
[1753688042016,0.73668,118890.0,118860.0,0.55537275]
[1753688042411,0.73668,118890.0,118860.0,0.72361275]
[1753688042919,0.73672,118890.0,118860.0,0.72361275]
[1753688043111,0.73672,118890.0,118870.0,0.47123675]
[1753688043311,0.73672,118890.0,118870.0,0.489948]
[1753688043618,0.73672,118890.0,118870.0,0.658188]
[1753688043915,0.96724524,118890.0,118870.0,0.18695125]
[1753688044115,1.00929784,118890.0,118870.0,0.16824]
[1753688044416,1.05135124,118890.0,118870.0,0.16824]
[1753688044613,0.4346198,118880.0,118870.0,0.16824]
[1753688045014,0.1682341,118870.0,118840.0,0.51333725]
[1753688045214,0.95516,118860.0,118840.0,0.72367805]
[1753688045417,0.95516,118860.0,118840.0,0.97367805]
[1753688045617,0.80086,118860.0,118850.0,0.30300345]
[1753688045818,0.80086,118860.0,118850.0,0.63953765]
[1753688046022,0.80086,118860.0,118850.0,0.88953765]
[1753688046219,0.9691081,118860.0,118850.0,0.72127545]
[1753688046425,1.0170681,118860.0,118850.0,0.418272]
[1753688047313,1.0191081,118860.0,118850.0,0.418272]
[1753688048424,2.25080224,118860.0,118850.0,0.418272]
[1753688050717,1.98440224,118860.0,118850.0,0.418272]
[1753688052124,1.98440224,118860.0,118850.0,0.168272]
[1753688052521,2.02646514,118860.0,118850.0,0.168272]
[1753688054326,2.02646514,118860.0,118850.0,0.47127545]
[1753688055127,1.49200514,118860.0,118850.0,0.47127545]
[1753688055329,1.28169414,118860.0,118850.0,0.63953785]
[1753688055527,1.96949414,118860.0,118850.0,0.63953785]
[1753688055728,1.28169414,118860.0,118850.0,0.63953785]
[1753688056027,2.13770234,118860.0,118850.0,0.47127545]
[1753688056525,2.57151234,118860.0,118850.0,0.47127545]
[1753688056728,2.63940234,118860.0,118850.0,0.47127545]
[1753688057532,1.95164234,118860.0,118850.0,0.47127545]
[1753688057729,2.63936234,118860.0,118850.0,0.47127545]
[1753688058627,2.63880234,118860.0,118850.0,0.47127545]
[1753688058831,2.63880234,118860.0,118850.0,0.47164874]
[1753688059022,2.63880234,118860.0,118850.0,0.40198966]
[1753688059632,1.95164234,118860.0,118850.0,0.40198966]
[1753688059823,2.63868234,118860.0,118850.0,0.40198966]
[1753688060132,2.63872234,118860.0,118850.0,0.40198966]
[1753688060628,1.95164234,118860.0,118850.0,0.40198966]
[1753688060930,0.98062234,118860.0,118850.0,0.40198966]
[1753688061229,1.66754234,118860.0,118850.0,0.40198966]
[1753688062132,2.83082234,118860.0,118850.0,0.40198966]
[1753688063231,0.98062234,118860.0,118850.0,0.40198966]
[1753688063532,2.83086234,118860.0,118850.0,0.40198966]
[1753688065736,2.14418234,118860.0,118850.0,0.40198966]
[1753688066037,1.23898234,118860.0,118850.0,0.65198966]
[1753688066237,0.55306234,118860.0,118850.0,0.65198966]
[1753688066439,0.55306234,118860.0,118850.0,0.88570732]
[1753688066741,0.55306234,118860.0,118850.0,0.65198966]
[1753688067036,1.23894234,118860.0,118850.0,0.65198966]
[1753688067225,1.23890234,118860.0,118850.0,0.65198966]
[1753688067427,1.23886234,118860.0,118850.0,0.65198966]
[1753688068427,0.2192482,118860.0,118850.0,1.05396962]
[1753688068628,0.8538082,118860.0,118850.0,1.09603512]
[1753688068828,0.1682482,118860.0,118850.0,1.09603512]
[1753688069238,0.4839616,118870.0,118850.0,1.13810062]
[1753688069538,0.6521956,118870.0,118860.0,0.46743532]
[1753688069737,1.3375156,118870.0,118860.0,0.46743532]
[1753688069934,1.3375156,118870.0,118860.0,0.63569132]
[1753688070134,1.5728156,118870.0,118860.0,0.63569132]
[1753688070534,1.0827556,118870.0,118860.0,0.63569132]
[1753688070734,1.7680756,118870.0,118860.0,0.40197366]
[1753688071433,1.7680756,118870.0,118860.0,0.63569132]
[1753688071937,1.7680756,118870.0,118860.0,0.63769132]
[1753688072440,1.83623129,118870.0,118860.0,0.63769132]
[1753688072638,1.83623129,118870.0,118860.0,0.57222186]
[1753688072942,1.83623129,118870.0,118860.0,0.40497366]
[1753688073739,1.15091129,118870.0,118860.0,0.57322186]
[1753688073933,1.15091129,118870.0,118860.0,0.80693952]
[1753688074134,1.40847129,118870.0,118860.0,0.80693952]
[1753688074432,1.36640969,118870.0,118860.0,0.80693952]
[1753688074634,0.84869969,118870.0,118860.0,0.80693952]
[1753688074934,1.60154969,118870.0,118860.0,0.80693952]
[1753688076236,0.99638969,118870.0,118860.0,0.80693952]
[1753688076445,1.79380969,118870.0,118860.0,0.80693952]
[1753688077240,1.10844969,118870.0,118860.0,0.80693952]
[1753688077640,1.79292969,118870.0,118860.0,0.80693952]
[1753688077937,0.6897725,118870.0,118860.0,0.80693952]
[1753688078145,1.332434,118870.0,118860.0,0.80693952]
[1753688078436,1.5981884,118880.0,118860.0,1.28839022]
[1753688078644,0.425152,118870.0,118860.0,0.76421756]
[1753688078944,0.425152,118870.0,118860.0,0.99793522]
[1753688079146,0.425152,118870.0,118860.0,1.33473122]
[1753688079444,0.424752,118870.0,118860.0,1.33273122]
[1753688079644,0.424752,118870.0,118860.0,1.33373122]
[1753688080144,0.424352,118870.0,118860.0,1.33173122]
[1753688080343,0.426352,118870.0,118860.0,1.33373122]
[1753688080531,0.710972,118870.0,118860.0,1.33373122]
[1753688080735,1.1196684,118880.0,118870.0,0.5653441]
[1753688080933,1.2878883,118880.0,118870.0,0.87821176]
[1753688081141,1.2868883,118880.0,118870.0,0.87821176]
[1753688081340,1.2448303,118880.0,118870.0,0.87821176]
[1753688081841,0.82308918,118880.0,118870.0,0.88321176]
[1753688082043,1.50700918,118880.0,118870.0,0.88321176]
[1753688082844,1.72016918,118880.0,118870.0,0.88321176]
[1753688083245,1.76152918,118880.0,118870.0,0.88321176]
[1753688083437,1.76252918,118880.0,118870.0,0.71697766]
[1753688083633,1.76252918,118880.0,118870.0,0.88521176]
[1753688084142,1.76252918,118880.0,118870.0,0.71697766]
[1753688084339,1.76252918,118880.0,118870.0,0.88521176]
[1753688084843,0.70059255,118890.0,118880.0,0.04501]
[1753688085146,1.35618224,118890.0,118880.0,0.27872766]
[1753688085937,1.35598224,118890.0,118880.0,0.27872766]
[1753688086144,1.42189556,118890.0,118880.0,0.27872766]
[1753688086348,1.42193556,118890.0,118880.0,0.27872766]
[1753688086850,1.42293556,118890.0,118880.0,0.28472766]
[1753688088639,1.0337617,118900.0,118880.0,0.28472766]
[1753688088842,1.3701934,118900.0,118890.0,0.23371766]
[1753688089043,1.1875934,118900.0,118890.0,0.23371766]
[1753688089851,1.1885934,118900.0,118890.0,0.23371766]
[1753688090248,1.1885934,118900.0,118890.0,0.23671766]
[1753688090458,1.1895934,118900.0,118890.0,0.24171766]
[1753688090641,1.1475425,118900.0,118890.0,0.28672766]
[1753688091141,1.1475825,118900.0,118890.0,0.008]
[1753688091448,1.21592009,118900.0,118890.0,0.008]
[1753688091648,1.69963775,118900.0,118890.0,0.008]
[1753688091849,0.04233851,118910.0,118890.0,0.008]
[1753688092050,0.04233851,118910.0,118890.0,0.05301]
[1753688092051,0.8505917,118900.0,118890.0,0.05301]
[1753688092352,0.1681917,118900.0,118890.0,0.28672766]
[1753688093050,0.1681917,118900.0,118890.0,0.28772766]
[1753688093842,0.1681917,118900.0,118890.0,0.23971766]
[1753688094040,0.1691917,118900.0,118890.0,0.24271766]
[1753688094246,0.1691917,118900.0,118890.0,0.23671766]
[1753688094450,0.1701917,118900.0,118890.0,0.24271766]
[1753688094757,0.1701917,118900.0,118890.0,0.28772766]
[1753688095151,0.002,118900.0,118890.0,0.28772766]
[1753688095350,0.06824994,118900.0,118890.0,0.28772766]
[1753688096056,0.06824994,118900.0,118890.0,0.96976766]
[1753688097654,0.06824994,118900.0,118890.0,1.13066766]
[1753688097856,0.06824994,118900.0,118890.0,1.20400766]
[1753688100456,0.06824994,118900.0,118890.0,1.37221346]
[1753688100661,0.08679838,118900.0,118890.0,1.62221346]
[1753688101051,0.05966128,118940.0,118920.0,0.15793]
[1753688101263,0.27182988,118940.0,118930.0,0.99301766]
[1753688101455,0.27182988,118940.0,118930.0,0.96068766]
[1753688101762,0.27182988,118940.0,118930.0,0.72697]
[1753688102453,0.33902509,118940.0,118930.0,0.72697]
[1753688102966,0.27940381,118940.0,118930.0,0.72697]
[1753688103162,0.51412147,118940.0,118930.0,0.04501]
[1753688103354,0.68228147,118940.0,118930.0,0.72697]
[1753688103554,0.68428147,118940.0,118930.0,0.73697]
[1753688104064,0.44860381,118940.0,118930.0,0.73097]
[1753688104367,0.44960381,118940.0,118930.0,0.73497]
[1753688104662,0.28144381,118940.0,118930.0,0.73497]
[1753688105655,0.11330751,118940.0,118930.0,0.73497]
[1753688105954,0.11330751,118940.0,118930.0,0.89587]
[1753688106563,0.11230751,118940.0,118930.0,0.89187]
[1753688106861,0.11330751,118940.0,118930.0,0.89287]
[1753688107061,0.11330751,118940.0,118930.0,0.9252]
[1753688107261,0.11330751,118940.0,118930.0,0.99854]
[1753688107463,0.11330751,118940.0,118930.0,1.15647]
[1753688109460,0.11330751,118940.0,118930.0,1.39018766]
[1753688111760,0.07027521,118940.0,118930.0,1.55833686]
[1753688113172,0.08869852,118940.0,118930.0,1.55833686]
[1753688113362,0.08769852,118940.0,118930.0,1.80833686]
[1753688115166,0.08765852,118940.0,118930.0,1.80833686]
[1753688115462,0.21121933,118960.0,118950.0,0.19207]
[1753688115668,0.21121933,118960.0,118950.0,1.39046766]
[1753688115967,0.04311223,118960.0,118950.0,1.39046766]
[1753688116369,0.21121893,118960.0,118950.0,1.39046766]
[1753688116668,0.27765939,118960.0,118950.0,1.39046766]
[1753688116869,0.51137705,118960.0,118950.0,0.47495]
[1753688117162,0.51337705,118960.0,118950.0,1.16771]
[1753688117968,0.51437705,118960.0,118950.0,1.17371]
[1753688118357,0.0840627,118950.0,118940.0,0.04828]
[1753688118566,0.46077447,118950.0,118940.0,0.73004]
[1753688118865,0.62891848,118950.0,118940.0,0.73004]
[1753688119059,0.62891848,118950.0,118930.0,0.04828]
[1753688119060,0.02917058,118940.0,118930.0,0.04828]
[1753688119268,0.51609654,118940.0,118930.0,0.04828]
[1753688119463,0.51609654,118940.0,118930.0,0.73]
[1753688120864,0.22512961,118960.0,118930.0,0.73]
[1753688121065,0.18920813,118940.0,118930.0,0.73]
[1753688121265,0.18920813,118940.0,118930.0,0.96371766]
[1753688121664,0.18920813,118940.0,118930.0,0.73]
[1753688122065,0.19220813,118940.0,118930.0,0.96371766]
[1753688122665,0.02407323,118940.0,118930.0,1.39038766]
[1753688122961,0.02407323,118940.0,118930.0,2.06301686]
[1753688123868,0.02007323,118940.0,118930.0,2.31501686]
[1753688124671,0.02207323,118940.0,118930.0,2.31601686]
[1753688124872,0.02207323,118940.0,118930.0,2.31566805]
[1753688125070,0.02207323,118940.0,118930.0,2.38523022]
[1753688125374,0.02207323,118940.0,118930.0,1.96708102]
[1753688125974,0.02211323,118940.0,118930.0,1.96708102]
[1753688126268,0.02211323,118940.0,118930.0,2.13523022]
[1753688126479,0.4414,118950.0,118930.0,2.13523022]
[1753688126670,0.4414,118950.0,118940.0,0.77788102]
[1753688127571,0.01802318,118950.0,118940.0,0.77788102]
[1753688127769,0.03504972,118950.0,118940.0,0.77788102]
[1753688128369,0.03704972,118950.0,118940.0,0.77988102]
[1753688128570,0.03704972,118950.0,118940.0,0.78088102]
[1753688128773,0.03808972,118950.0,118940.0,0.78088102]
[1753688130875,0.03808972,118950.0,118940.0,1.70349602]
[1753688133072,0.10855269,118960.0,118940.0,1.70349602]
[1753688133272,0.12658904,118960.0,118950.0,1.45956102]
[1753688133669,0.12658904,118960.0,118950.0,1.96404102]
[1753688134077,0.12658904,118960.0,118950.0,2.13216202]
[1753688134271,0.12758904,118960.0,118950.0,2.13216202]
[1753688134672,0.08551681,118960.0,118950.0,2.38216202]
[1753688134874,0.08751681,118960.0,118950.0,2.38816202]
[1753688135073,0.08651681,118960.0,118950.0,2.38816202]
[1753688135778,0.08751681,118960.0,118950.0,2.39216202]
[1753688136177,0.08755681,118960.0,118950.0,2.39216202]
[1753688138480,0.01699305,118970.0,118960.0,0.6430567]
[1753688138668,0.01699305,118970.0,118960.0,0.94598772]
[1753688138867,0.0001,118980.0,118970.0,0.3601626]
[1753688139072,0.06761668,118980.0,118970.0,1.62757362]
[1753688139280,0.01706641,118980.0,118970.0,2.38205362]
[1753688140575,0.01806641,118980.0,118970.0,2.38805362]
[1753688141171,0.01810641,118980.0,118970.0,2.38805362]
[1753688141677,0.01910641,118980.0,118970.0,2.39305362]
[1753688141982,0.01810641,118980.0,118970.0,2.38805362]
[1753688142176,0.01910641,118980.0,118970.0,2.39705362]
[1753688142383,0.01910641,118980.0,118970.0,1.72448102]
[1753688142683,0.01910641,118980.0,118970.0,2.22896102]
[1753688142881,0.01810641,118980.0,118970.0,2.22296102]
[1753688143080,0.01910641,118980.0,118970.0,2.23096102]
[1753688143886,0.08651541,118980.0,118970.0,2.39905372]
[1753688144081,0.01910641,118980.0,118970.0,2.39905372]
[1753688144882,0.01910641,118980.0,118970.0,2.39885963]
[1753688145083,0.01910641,118980.0,118970.0,2.32934209]
[1753688146582,0.00214,118980.0,118970.0,2.32934209]
[1753688146778,0.00214,118980.0,118970.0,2.56256148]
[1753688147991,0.01891754,118980.0,118970.0,2.56256148]
[1753688148490,0.08726498,118980.0,118970.0,2.56256148]
[1753688148684,0.04130103,118990.0,118980.0,0.6537784]
[1753688148885,0.04130103,118990.0,118980.0,1.62469718]
[1753688149187,0.04130103,118990.0,118980.0,1.87469718]
[1753688149685,4e-05,119010.0,119000.0,0.6537503]
[1753688149986,4e-05,119010.0,119000.0,1.1671]
[1753688150177,4e-05,119010.0,119000.0,1.40031939]
[1753688150574,0.01771417,119010.0,119000.0,1.40031939]
[1753688150780,0.01771417,119010.0,119000.0,1.40025043]
[1753688151090,0.05919485,119010.0,119000.0,1.46974775]
[1753688151388,0.08662429,119010.0,119000.0,1.46974775]
[1753688151593,0.01771417,119010.0,119000.0,1.46974775]
[1753688152287,0.01771417,119010.0,119000.0,1.47374775]
[1753688152486,0.01871417,119010.0,119000.0,1.48074775]
[1753688154287,0.01871417,119010.0,119000.0,0.79934775]
[1753688154489,0.01871417,119010.0,119000.0,1.48066775]
[1753688154686,0.06181242,119010.0,119000.0,1.48066775]
[1753688155989,0.06781242,119010.0,119000.0,1.47366775]
[1753688156179,0.13660143,119010.0,119000.0,1.47366775]
[1753688156690,0.2100675,119020.0,119000.0,1.47366775]
[1753688156886,0.2100675,119020.0,119010.0,0.78834775]
[1753688157386,0.2100675,119020.0,119010.0,0.04879]
[1753688157584,0.2100675,119020.0,119010.0,0.73007]
[1753688157892,0.2120675,119020.0,119010.0,0.73007]
[1753688158287,0.2120675,119020.0,119010.0,0.04879]
[1753688158489,0.12687191,119010.0,119000.0,0.73003]
[1753688158790,0.2940943,119000.0,118990.0,0.73003]
[1753688159687,0.210064,119000.0,118990.0,1.16694]
[1753688161593,0.215064,119000.0,118990.0,1.16694]
[1753688163390,0.274786,119000.0,118990.0,1.16694]
[1753688164297,0.283786,119000.0,118990.0,1.16694]
[1753688164897,0.283786,119000.0,118990.0,0.41622]
[1753688165086,0.283786,119000.0,118990.0,0.92331]
[1753688165496,0.283786,119000.0,118990.0,1.09746]
[1753688165693,0.283786,119000.0,118990.0,1.16694]
[1753688166301,0.224064,119000.0,118990.0,1.16694]
[1753688168497,0.283786,119000.0,118990.0,1.16694]
[1753688168699,0.30142526,119000.0,118990.0,1.16694]
[1753688171906,0.25941156,119000.0,118990.0,1.16694]
[1753688172804,0.03163926,119000.0,118990.0,2.22421996]
[1753688173008,0.03163926,119000.0,118990.0,2.15458391]
[1753688175602,0.19968946,119000.0,118990.0,1.40006391]
[1753688175907,0.19968946,119000.0,118990.0,1.1669]
[1753688176406,0.25941146,119000.0,118990.0,1.1669]
[1753688176804,0.25941146,119000.0,118990.0,1.40018106]
[1753688177007,0.25941146,119000.0,118990.0,1.1669]
[1753688178509,0.19968946,119000.0,118990.0,1.1669]
[1753688181310,0.25941146,119000.0,118990.0,1.1669]
[1753688181505,0.25941146,119000.0,118990.0,0.4857]
[1753688181707,0.25941146,119000.0,118990.0,1.16682]
[1753688181910,0.09136126,119000.0,118990.0,1.46963636]
[1753688183115,0.03163926,119000.0,118990.0,2.22407636]
[1753688188014,0.19968956,119000.0,118990.0,2.22403636]
[1753688188417,0.19968956,119000.0,118990.0,1.16674]
[1753688188807,0.25941156,119000.0,118990.0,1.16674]
[1753688189206,0.25941156,119000.0,118990.0,0.4857]
[1753688189411,0.25941156,119000.0,118990.0,1.1667]
[1753688191818,0.25945156,119000.0,118990.0,1.1667]
[1753688193121,0.19972956,119000.0,118990.0,1.46951636]
[1753688194527,0.19972956,119000.0,118990.0,1.1667]
[1753688196522,0.03167926,119000.0,118990.0,1.46951636]
[1753688198925,0.03167926,119000.0,118990.0,1.46947827]
[1753688199126,0.03167926,119000.0,118990.0,1.3999519]
[1753688199326,0.19972946,119000.0,118990.0,1.3999519]
[1753688199530,0.03167926,119000.0,118990.0,1.3999519]
[1753688199924,0.19972956,119000.0,118990.0,1.3999519]
[1753688200121,0.25945156,119000.0,118990.0,1.3999519]
[1753688206345,0.19972956,119000.0,118990.0,1.3999519]
[1753688208947,0.19972956,119000.0,118990.0,1.1667]
[1753688210744,0.19972956,119000.0,118990.0,0.4857]
[1753688211050,0.49270346,119000.0,118990.0,1.16642]
[1753688213547,0.43298146,119000.0,118990.0,1.16642]
[1753688213849,0.52345146,119000.0,118990.0,1.05354084]
[1753688214050,0.57304146,119000.0,118990.0,1.01629084]
[1753688214640,0.57304146,119000.0,118990.0,1.00315]
[1753688214846,0.83858704,119000.0,118990.0,1.00022619]
[1753688215045,0.83858704,119000.0,118990.0,0.99428619]
[1753688215345,0.77869146,119000.0,118990.0,0.07464]
[1753688215548,0.77869146,119000.0,118990.0,0.15344]
[1753688215949,0.77869146,119000.0,118990.0,0.19892]
[1753688216150,0.85323938,119000.0,118990.0,0.19892]
[1753688217454,0.85323938,119000.0,118990.0,0.4345]
[1753688217956,0.85323938,119000.0,118990.0,0.38907325]
[1753688218556,0.85323938,119000.0,118990.0,0.27292719]
[1753688218850,0.85323938,119000.0,118990.0,0.30040606]
[1753688219456,0.77869146,119000.0,118990.0,0.30040606]
[1753688220455,0.54543956,119000.0,118990.0,0.30040606]
[1753688220757,0.54543956,119000.0,118990.0,0.36639606]
[1753688221358,0.54543956,119000.0,118990.0,0.59964796]
[1753688221359,0.42949956,119000.0,118990.0,0.59964796]
[1753688221558,0.14116619,119000.0,118990.0,1.35412796]
[1753688221762,0.06610268,119010.0,118990.0,1.3400552]
[1753688222055,0.53263432,119020.0,119010.0,0.2643]
[1753688222256,0.48304432,119020.0,119010.0,1.08444485]